bitfinex/quotes_ETHUSD_20260119
["timestamp","ask_amount","ask_price","bid_price","bid_amount"]
[1768823487344,0.91891779,3225.5,3224.9,0.99348686]
[1768823491630,3.10221748,3225.6,3225.0,0.99348686]
[1768823491631,4.02119091,3225.6,3225.0,0.99348686]
[1768823491949,0.91891779,3225.5,3225.0,0.99348686]
[1768823492149,0.91891779,3225.5,3224.9,1.50348686]
[1768823492317,0.91891779,3225.5,3224.9,0.99348686]
[1768823492518,4.01930843,3225.4,3224.9,1.50348686]
[1768823492720,0.91891779,3225.3,3225.2,0.001]
[1768823492951,0.91891779,3225.2,3224.6,0.001]
[1768823494624,0.91891779,3225.0,3224.6,0.001]
[1768823495557,0.91891779,3225.0,3224.3,0.0008004]
[1768823495957,0.91891779,3224.6,3224.0,0.00080024]
[1768823496654,0.91891779,3224.6,3224.0,0.9942871]
[1768823497158,4.02017379,3224.5,3224.0,0.9942871]
[1768823497348,4.73238137,3224.5,3224.0,0.9942871]
[1768823497551,0.91891779,3224.4,3224.0,0.9942871]
[1768823497923,0.91891779,3224.4,3223.9,0.001]
[1768823497924,0.91971803,3224.4,3223.9,0.001]
[1768823499059,0.91891779,3224.2,3223.9,0.001]
[1768823501234,3.61244837,3224.3,3223.9,0.94040066]
[1768823501235,0.511,3224.3,3223.9,0.94040066]
[1768823501441,0.00080024,3224.4,3223.9,0.94040066]
[1768823501639,0.00080024,3224.4,3224.2,0.93940066]
[1768823502163,4.10206088,3224.4,3223.9,0.001]
[1768823502334,0.99990668,3224.3,3223.9,0.001]
[1768823503666,0.99990668,3224.2,3223.9,0.001]
[1768823506884,4.10145957,3224.2,3223.9,0.001]
[1768823507038,4.87292099,3224.2,3223.9,0.001]
[1768823507755,1.7713681,3224.2,3223.9,0.001]
[1768823508748,4.87291813,3224.2,3223.9,0.001]
[1768823509263,3.61315879,3224.4,3224.1,0.93940066]
[1768823509264,0.00080024,3224.4,3224.1,0.93940066]
[1768823509468,0.00080024,3224.4,3224.1,0.91798113]
[1768823510243,0.0028004,3224.7,3224.2,0.93940066]
[1768823510846,0.0028004,3224.7,3224.1,3.10160191]
[1768823510847,0.0028004,3224.7,3224.4,0.93940066]
[1768823511157,0.0028004,3224.7,3224.1,0.93940066]
[1768823511952,0.0028004,3224.7,3224.2,0.93940066]
[1768823512271,1.00270708,3224.7,3224.2,0.93940066]
[1768823513565,0.92140307,3224.6,3224.0,0.00080032]
[1768823513767,0.92140307,3224.6,3224.1,0.31036119]
[1768823513972,0.92140307,3224.6,3224.0,0.99573229]
[1768823514451,0.92140307,3224.5,3224.0,0.99573229]
[1768823516914,0.92140307,3224.5,3224.3,0.001]
[1768823517287,0.002,3224.4,3224.3,0.001]
[1768823521197,0.0028004,3224.7,3224.4,0.99493197]
[1768823525715,0.0028004,3224.7,3224.3,0.001]
[1768823527507,0.92420347,3224.7,3224.3,0.001]
[1768823528701,0.002,3224.4,3224.3,0.001]
[1768823529899,0.002,3224.4,3224.3,0.99593197]
[1768823531102,0.002,3225.0,3224.5,0.99493197]
[1768823532303,0.002,3225.0,3224.6,0.99493197]
[1768823534204,0.92140307,3225.5,3224.8,0.99493197]
[1768823535581,0.92140307,3225.4,3224.8,0.99493197]
[1768823540295,0.002,3225.1,3224.8,0.99493197]
[1768823544214,0.002,3225.1,3224.6,3.61111444]
[1768823544446,0.002,3225.1,3224.7,1.40088906]
[1768823545503,0.002,3225.1,3224.7,0.99879581]
[1768823547608,0.002,3225.1,3224.6,0.51]
[1768823547609,0.90628159,3225.1,3224.6,0.51]
[1768823547810,1.41728159,3225.1,3224.3,1.00059629]
[1768823548011,0.90428159,3225.0,3224.3,0.00180048]
[1768823549519,6.20174268,3224.9,3224.3,0.00180048]
[1768823549727,0.90428159,3224.7,3224.0,0.00080032]
[1768823549915,0.90428159,3224.5,3224.0,0.00080032]
[1768823551626,4.0055934,3224.5,3224.0,0.00080032]
[1768823551935,0.90428159,3224.4,3224.0,0.00080032]
[1768823552308,4.00620668,3224.7,3224.0,0.99959613]
[1768823552509,0.511,3224.5,3224.0,0.99959613]
[1768823553424,1.41528159,3224.5,3224.0,0.99959613]
[1768823553736,0.90428159,3224.4,3224.0,0.00080032]
[1768823555025,0.90428159,3224.3,3223.6,0.00080016]
[1768823555806,0.76257365,3224.4,3223.6,0.00080016]
[1768823555807,0.90428159,3224.1,3223.6,0.00080016]
[1768823556002,0.90428159,3224.0,3223.6,0.00080016]
[1768823559833,0.511,3224.1,3223.6,0.95696917]
[1768823561904,1.42015521,3224.1,3223.6,0.95696917]
[1768823562653,0.90915521,3223.9,3223.3,0.00080024]
[1768823562865,0.90915521,3223.6,3222.7,0.95696941]
[1768823563003,5.77318505,3223.7,3222.8,0.95616901]
[1768823563004,0.90915521,3223.4,3222.8,0.95616901]
[1768823565270,0.90915521,3223.3,3222.8,0.95616901]
[1768823566158,0.90915521,3223.3,3222.7,0.0008004]
[1768823566857,0.90915521,3223.2,3222.7,0.0008004]
[1768823568438,0.90915521,3223.1,3222.7,0.0008004]
[1768823569644,0.511,3223.1,3222.7,0.0008004]
[1768823569844,0.90915521,3223.0,3222.7,0.0008004]
[1768823571190,0.511,3223.1,3222.7,0.95696941]
[1768823571751,1.42015521,3223.1,3222.7,0.95696941]
[1768823572890,1.42015521,3223.1,3222.7,0.0008004]
[1768823573074,4.5227737,3223.1,3222.7,0.0008004]
[1768823573457,0.96552003,3223.0,3222.7,0.0008004]
[1768823575750,4.06823592,3223.0,3222.7,0.0008004]
[1768823576993,0.96552003,3223.2,3222.7,0.97364664]
[1768823577288,0.0008004,3223.4,3222.8,0.97284624]
[1768823577587,0.0008004,3223.4,3223.0,0.97284624]
[1768823581791,0.00080024,3223.7,3223.1,0.97284624]
[1768823583278,0.96632027,3223.7,3223.1,0.97284624]
[1768823584583,0.96632027,3223.7,3223.0,0.00080048]
[1768823584584,0.96552003,3223.5,3223.0,0.00080048]
[1768823584785,0.96552003,3223.3,3222.7,0.0008004]
[1768823584981,0.96552003,3223.2,3222.7,0.0008004]
[1768823586169,0.96552003,3223.1,3222.7,0.0008004]
[1768823586996,0.96552003,3223.1,3223.0,0.001]
[1768823587167,0.96552003,3223.1,3222.7,0.0008004]
[1768823587678,4.06812741,3223.1,3222.7,0.0008004]
[1768823587876,0.96552003,3223.0,3222.7,0.0008004]
[1768823589169,0.7681623,3223.1,3222.7,0.0008004]
[1768823589478,4.57910607,3223.2,3222.7,0.97364664]
[1768823589995,0.96552003,3223.1,3222.7,0.97364664]
[1768823590400,0.96552003,3223.1,3222.7,0.0008004]
[1768823591279,0.96552003,3222.9,3222.7,0.0008004]
[1768823593806,0.96552003,3222.8,3222.7,0.0008004]
[1768823594883,0.96552003,3222.7,3222.3,0.0008004]
[1768823596301,0.91783486,3222.8,3222.3,0.97364664]
[1768823596504,0.511,3222.8,3222.3,0.97364664]
[1768823596991,3.61390889,3222.8,3222.3,0.97364664]
[1768823599190,3.61390889,3222.8,3222.6,0.001]
[1768823600306,4.57942892,3222.8,3222.3,0.97364664]
[1768823600511,0.96552003,3222.7,3222.3,0.0008004]
[1768823600809,0.96552003,3222.6,3222.3,0.0008004]
[1768823603119,0.96552003,3222.6,3221.1,0.91361864]
[1768823603120,0.00080032,3221.8,3221.1,0.91361864]
[1768823603280,0.90795496,3221.8,3221.1,0.91361864]
[1768823603481,0.00080032,3221.8,3221.1,0.91361864]
[1768823604611,0.00080032,3221.8,3221.3,0.91361864]
[1768823605718,0.90795496,3221.8,3221.3,0.91361864]
[1768823606289,0.90795496,3221.8,3221.2,0.91361864]
[1768823607616,6.68912731,3221.6,3220.9,0.00080032]
[1768823607820,6.68912731,3221.6,3221.0,0.91361864]
[1768823607821,0.511,3221.6,3221.0,0.91361864]
[1768823607991,0.90715464,3221.2,3220.6,0.00080032]
[1768823608407,0.90715464,3221.2,3220.6,0.91441896]
[1768823610915,0.00080032,3221.3,3221.0,0.91361864]
[1768823611822,0.00080032,3221.3,3220.9,0.001]
[1768823612033,0.00080032,3221.3,3220.9,0.91461864]
[1768823614006,0.00080032,3221.3,3220.9,0.91338547]
[1768823614733,0.51180032,3221.8,3221.0,0.91361864]
[1768823614734,0.00080032,3221.8,3221.0,0.91361864]
[1768823615226,4.01182348,3221.8,3221.0,0.91361864]
[1768823617228,0.90715464,3221.7,3221.0,0.91361864]
[1768823618625,0.90715464,3221.7,3221.0,3.10460422]
[1768823618832,0.90715464,3221.7,3221.1,0.91361864]
[1768823619561,0.00080032,3221.8,3221.1,0.91361864]
[1768823619732,0.00080032,3221.8,3221.2,0.94710985]
[1768823622527,0.00080032,3221.8,3221.3,0.94810985]
[1768823622833,0.002,3221.5,3221.3,0.94810985]
[1768823624738,0.002,3221.5,3221.3,0.001]
[1768823624936,0.95705873,3221.4,3220.9,0.0008004]
[1768823626241,0.002,3221.5,3220.9,0.94791025]
[1768823628141,0.002,3221.5,3220.9,4.05262771]
[1768823628346,0.002,3221.5,3221.0,0.94710985]
[1768823628534,0.95905873,3221.5,3221.0,0.94710985]
[1768823628708,0.002,3221.5,3220.9,0.94791025]
[1768823628911,0.002,3221.5,3221.0,0.94710985]
[1768823631328,0.002,3221.5,3221.1,0.94710985]
[1768823631541,0.002,3221.5,3221.1,0.54335373]
[1768823632157,0.95905873,3221.5,3221.1,0.54335373]
[1768823632321,0.95905873,3221.5,3221.0,0.94710985]
[1768823633022,0.95905873,3221.5,3221.0,4.05171057]
[1768823633224,0.002,3221.5,3221.1,0.95724261]
[1768823634426,0.002,3221.5,3221.0,3.50985182]
[1768823634645,0.002,3221.5,3221.0,4.46709443]
[1768823634848,0.002,3221.2,3221.1,0.95724261]
[1768823635625,0.002,3221.5,3221.1,0.95724261]
[1768823638256,0.002,3221.5,3221.2,0.95724261]
[1768823638462,0.002,3221.5,3221.2,0.55348903]
[1768823638675,0.00280032,3221.8,3221.4,0.95724261]
[1768823640150,0.00280032,3221.8,3221.4,4.06143691]
[1768823640338,0.00280032,3221.8,3221.5,0.95724261]
[1768823640949,0.00080032,3222.1,3221.4,6.20843469]
[1768823641158,0.00080032,3222.1,3221.6,0.95724261]
[1768823642362,0.00080032,3222.1,3221.7,1.46824261]
[1768823643657,0.96768697,3221.8,3221.4,0.0008004]
[1768823643860,0.96768697,3221.8,3221.0,0.511]
[1768823644036,0.96848737,3221.8,3221.0,0.511]
[1768823645268,0.96768697,3221.6,3221.0,0.511]
[1768823645749,0.96768697,3221.6,3221.0,3.61562305]
[1768823646162,0.96768697,3221.6,3221.0,0.511]
[1768823648585,0.96768697,3221.6,3221.0,1.46824261]
[1768823653389,0.96768697,3221.6,3221.0,4.5728572]
[1768823654373,0.96768697,3221.6,3221.0,1.46824261]
[1768823656188,0.96768697,3221.6,3221.0,4.5728325]
[1768823657491,0.96768697,3221.6,3221.0,1.46824261]
[1768823658067,0.96768697,3221.6,3221.3,0.002]
[1768823658267,0.96768697,3221.5,3221.3,0.002]
[1768823658587,0.0018004,3221.8,3221.3,0.002]
[1768823658897,0.0018004,3221.8,3221.4,0.95724261]
[1768823659071,0.96948737,3221.8,3221.4,0.95724261]
[1768823659676,0.96948737,3221.8,3221.3,0.95924261]
[1768823661318,0.96768697,3221.7,3221.3,0.002]
[1768823661591,0.0018004,3221.8,3221.4,0.95724261]
[1768823662898,0.00080032,3222.1,3221.6,0.9943694]
[1768823663071,0.00080032,3222.1,3221.7,0.9943694]
[1768823664209,0.00080032,3222.1,3221.6,5.78512249]
[1768823664210,0.96070497,3222.4,3221.6,5.78512249]
[1768823664368,0.0008004,3222.4,3221.8,0.9943694]
[1768823664872,0.96070497,3222.4,3221.8,0.9943694]
[1768823665208,0.96070497,3222.4,3221.8,4.09816796]
[1768823665380,0.96070497,3222.4,3221.9,0.9943694]
[1768823668568,0.0008004,3222.7,3222.3,0.9943694]
[1768823670186,0.96070497,3222.7,3222.3,0.9943694]
[1768823670501,0.96070497,3222.7,3222.2,0.9943694]
[1768823670806,0.96070497,3222.7,3222.0,0.00080048]
[1768823671105,0.002,3222.1,3222.0,0.00080048]
[1768823671281,0.95990457,3222.3,3222.0,0.36236117]
[1768823671708,0.95990457,3222.3,3222.0,0.00080048]
[1768823676926,0.95990457,3222.3,3221.7,0.0008004]
[1768823677701,0.95990457,3222.3,3221.7,0.9951698]
[1768823677907,0.95990457,3222.3,3221.7,4.09912071]
[1768823678225,0.95990457,3222.3,3221.8,0.9943694]
[1768823679494,0.95990457,3222.3,3221.7,0.0008004]
[1768823679495,0.97976683,3222.2,3221.7,0.0008004]
[1768823679927,0.97976683,3222.1,3221.7,0.0008004]
[1768823680922,0.97976683,3222.0,3221.7,0.0008004]
[1768823684810,0.98176683,3222.0,3221.7,0.0008004]
[1768823686644,0.97976683,3221.9,3221.7,0.0008004]
[1768823688046,0.97976683,3221.8,3221.6,0.001]
[1768823692430,0.97976683,3221.7,3221.6,0.001]
[1768823695561,0.002,3222.0,3221.6,0.001]
[1768823695734,0.9868483,3221.9,3221.6,0.001]
[1768823701250,0.002,3222.0,3221.6,0.001]
[1768823701568,0.9888483,3222.0,3221.6,0.001]
[1768823701761,0.002,3222.0,3221.6,0.96663369]
[1768823702358,0.002,3222.0,3221.7,0.40707375]
[1768823702547,0.9888483,3222.0,3221.6,0.96663369]
[1768823702952,0.9888483,3222.0,3221.6,0.001]
[1768823705842,0.9868483,3221.8,3221.4,0.00080048]
[1768823708149,4.09072179,3221.8,3221.4,0.00080048]
[1768823708482,4.8103667,3221.8,3221.4,0.00080048]
[1768823710977,0.002,3222.0,3221.4,0.96643417]
[1768823711164,0.002,3222.0,3221.6,0.96563369]
[1768823713273,0.9888483,3222.0,3221.6,0.96563369]
[1768823713682,0.9888483,3222.0,3221.4,0.96643417]
[1768823716887,0.9888483,3222.0,3221.5,0.96563369]
[1768823718189,0.002,3222.0,3221.5,0.96563369]
[1768823718390,0.002,3222.0,3221.6,0.96563369]
[1768823721593,0.002,3221.7,3221.6,0.96563369]
[1768823724996,0.002,3221.7,3221.4,0.00080048]
[1768823724997,0.93236888,3221.7,3221.4,0.00080048]
[1768823735274,0.002,3221.7,3221.4,0.00080048]
[1768823739818,1e-08,3222.4,3221.7,0.98274658]
[1768823740015,0.91119938,3222.8,3222.2,0.9819461]
[1768823740016,0.002,3222.8,3222.2,0.9819461]
[1768823740309,0.002,3222.8,3222.4,0.9819461]
[1768823740779,0.91199978,3223.1,3222.5,0.9819461]
[1768823741182,0.91199978,3223.1,3222.3,2.17031497]
[1768823741394,0.90919938,3223.0,3222.3,1.49374658]
[1768823741594,0.90919938,3223.0,3222.4,3.10325789]
[1768823741817,0.90919938,3223.0,3222.3,1.49374658]
[1768823741980,0.90919938,3223.0,3222.3,4.59706638]
[1768823742478,0.90919938,3223.0,3222.3,1.49374658]
[1768823742683,0.90919938,3223.0,3222.3,4.59711493]
[1768823743925,0.90919938,3223.0,3222.3,3.61516883]
[1768823744100,0.90919938,3223.0,3222.4,0.9819461]
[1768823744592,0.90919938,3223.0,3222.4,4.08519203]
[1768823745116,0.002,3222.7,3222.4,0.9819461]
[1768823745719,0.002,3222.7,3222.4,4.08520567]
[1768823747529,0.002,3222.7,3222.5,0.9819461]
[1768823747926,0.002,3222.7,3222.6,0.9819461]
[1768823748091,0.002,3223.0,3222.6,0.9819461]
[1768823749222,0.002,3223.0,3222.7,0.9819461]
[1768823752799,0.002,3223.0,3222.8,0.93844497]
[1768823753003,0.0028004,3223.1,3222.8,0.93844497]
[1768823756430,0.0028004,3223.1,3222.7,0.511]
[1768823756630,0.99622282,3223.1,3222.3,0.93924545]
[1768823756835,0.99622282,3223.1,3222.4,0.511]
[1768823757808,0.99622282,3223.1,3223.0,0.001]
[1768823758019,0.99342242,3223.0,3222.4,0.511]
[1768823760238,0.99342242,3223.0,3222.5,0.93844497]
[1768823760537,0.0028004,3223.1,3222.5,0.93844497]
[1768823761940,0.99622282,3223.1,3222.5,0.93844497]
[1768823767145,0.99342242,3223.0,3222.5,0.93844497]
[1768823769355,0.99622282,3223.1,3222.8,0.001]
[1768823772526,3.10541301,3223.1,3222.8,0.001]
[1768823772852,0.99342242,3223.0,3222.8,0.001]
[1768823774948,0.99342242,3222.9,3222.8,0.001]
[1768823778363,0.99342242,3222.9,3222.3,0.00080048]
[1768823778526,0.99342242,3222.6,3222.3,0.00080048]
[1768823780562,0.99342242,3222.5,3222.3,0.00080048]
[1768823787178,0.0028004,3223.1,3222.5,0.9945452]
[1768823787334,0.0028004,3223.1,3222.6,0.9945452]
[1768823788032,0.002,3223.3,3222.6,0.9945452]
[1768823788230,0.002,3223.3,3222.8,0.9945452]
[1768823789274,0.002,3223.3,3222.9,3.10279561]
[1768823789481,0.002,3223.3,3223.0,0.9945452]
[1768823795474,0.002,3223.3,3223.0,0.40973403]
[1768823795674,0.002,3223.3,3223.1,0.9945452]
[1768823799188,0.00080048,3223.4,3223.1,0.9945452]
[1768823804889,0.00280048,3223.4,3223.1,0.9945452]
[1768823812568,0.00280048,3223.4,3223.0,0.40973403]
[1768823812768,0.91723717,3223.4,3223.0,0.99754431]
[1768823814307,0.00280048,3223.4,3223.0,0.99754431]
[1768823817300,0.00280048,3223.4,3223.3,0.001]
[1768823817798,0.91723717,3223.4,3222.7,0.00080048]
[1768823817992,0.91443669,3223.1,3222.6,0.001]
[1768823818174,0.91443669,3222.9,3222.3,0.00080048]
[1768823819497,3.10282311,3222.9,3222.3,0.00080048]
[1768823819679,0.91443669,3222.8,3222.3,0.00080048]
[1768823822003,0.91443669,3222.7,3222.3,0.00080048]
[1768823829014,0.91443669,3222.7,3222.6,0.001]
[1768823829217,1.31617098,3222.7,3222.6,0.001]
[1768823831308,0.91443669,3222.6,3222.3,0.00080048]
[1768823832097,0.91443669,3222.5,3222.0,0.00080056]
[1768823832415,0.91443669,3222.3,3222.0,0.00080056]
[1768823833181,0.00080048,3222.7,3222.0,0.99834487]
[1768823834125,0.00080048,3223.1,3222.3,0.99754431]
[1768823834291,0.00080048,3223.1,3222.5,0.99754431]
[1768823834617,0.91523717,3223.1,3222.5,0.99754431]
[1768823835387,0.91523717,3223.1,3222.3,4.10169906]
[1768823835586,0.91523717,3223.1,3222.3,0.00080056]
[1768823836186,0.91523717,3223.1,3222.3,0.99834487]
[1768823836387,0.91443669,3223.0,3222.3,4.10171786]
[1768823836587,0.91443669,3223.0,3222.3,0.99834487]
[1768823837329,0.91443669,3223.0,3222.3,0.00080056]
[1768823837548,0.91443669,3223.0,3222.3,0.99834487]
[1768823838633,0.91443669,3222.9,3222.3,0.99834487]
[1768823839332,0.91443669,3222.9,3222.3,0.00080056]
[1768823841321,0.002,3222.7,3222.6,0.001]
[1768823845220,1.24449917,3222.7,3222.6,0.001]
[1768823846621,0.00080048,3223.1,3222.7,0.78477699]
[1768823846824,0.00080048,3223.1,3222.7,0.80041143]
[1768823847022,0.93481694,3223.4,3222.8,0.78477699]
[1768823849521,0.93481694,3223.4,3222.8,3.88765473]
[1768823849721,0.93481694,3223.4,3222.8,1.17528596]
[1768823851607,0.93481694,3223.4,3222.8,0.39050897]
[1768823851808,0.93481694,3223.4,3222.8,0.78477699]
[1768823853049,0.002,3223.1,3222.8,0.78477699]
[1768823857249,0.002,3223.6,3223.0,0.77997651]
[1768823857446,0.002,3223.6,3223.1,0.77997651]
[1768823857749,0.93401646,3223.6,3223.1,0.77997651]
[1768823865366,0.93401646,3223.6,3223.1,0.78097651]
[1768823869262,0.93401646,3223.6,3223.1,0.001]
[1768823869778,0.00280024,3223.7,3223.2,0.77997651]
[1768823870138,0.93748954,3223.7,3223.3,0.38835739]
[1768823870669,0.93748954,3223.7,3223.1,3.88357586]
[1768823871150,0.93748954,3223.7,3223.1,0.001]
[1768823874033,0.93748954,3223.7,3223.1,0.78097651]
[1768823874894,3.61357749,3224.0,3223.1,0.78097651]
[1768823875170,3.61357749,3224.0,3223.3,0.00080032]
[1768823875171,0.9921392,3223.9,3223.3,0.00080032]
[1768823875539,0.9921392,3223.9,3223.3,0.98109541]
[1768823876374,0.9921392,3223.9,3223.3,0.00080032]
[1768823877381,0.9921392,3223.8,3223.4,0.001]
[1768823877875,0.002,3223.7,3223.4,0.001]
[1768823878175,0.9941392,3223.7,3223.4,0.001]
[1768823880483,0.002,3223.7,3223.4,0.001]
[1768823882081,0.002,3223.7,3223.4,1.38975151]
[1768823885175,0.9941392,3223.7,3223.4,0.40945642]
[1768823887289,0.9941392,3223.7,3223.4,0.001]
[1768823888861,0.9921392,3223.6,3223.4,0.001]
[1768823897494,0.9921392,3223.5,3223.4,0.001]
[1768823900592,0.9921392,3223.4,3223.3,0.00080032]
[1768823901801,0.9921392,3223.4,3223.1,0.001]
[1768823904300,0.93154264,3223.2,3223.1,0.001]
[1768823906606,0.93154264,3223.6,3223.1,0.93673386]
[1768823906805,1.44254264,3223.6,3223.1,0.93673386]
[1768823907209,4.03640461,3223.7,3223.1,0.93673386]
[1768823907430,0.00280032,3223.7,3223.1,0.93673386]
[1768823908883,0.93434296,3223.7,3223.1,0.93673386]
[1768823909495,0.93434296,3223.7,3223.2,0.93573386]
[1768823913023,0.002,3223.4,3223.2,0.93573386]
[1768823917837,1.4453428,3224.0,3223.4,0.93573386]
[1768823918122,0.93154264,3223.9,3223.4,0.93573386]
[1768823918325,0.00280016,3224.0,3223.5,0.93573386]
[1768823918714,0.9343428,3224.0,3223.5,0.93573386]
[1768823918916,0.9343428,3224.0,3223.4,3.50612827]
[1768823924903,0.9343428,3224.0,3223.5,0.001]
[1768823925507,0.002,3223.7,3223.5,0.001]
[1768823925811,0.9662971,3223.9,3223.5,0.44891598]
[1768823927037,0.9662971,3223.9,3223.5,0.001]
[1768823929436,0.00280016,3224.0,3223.6,0.97123115]
[1768823929815,0.96909726,3224.0,3223.5,0.97223115]
[1768823932153,0.96909726,3224.0,3223.5,0.001]
[1768823937661,0.96909726,3224.0,3223.8,0.001]
[1768823939828,0.9682971,3224.0,3223.8,0.001]
[1768823940033,1e-08,3224.0,3223.8,0.001]
[1768823942038,0.90467164,3223.9,3223.8,0.001]
[1768823942254,0.90467164,3223.9,3223.3,0.0008004]
[1768823944366,0.90467164,3223.7,3223.3,0.0008004]
[1768823944574,1.41567164,3223.6,3223.3,0.0008004]
[1768823944775,2.17762468,3223.6,3223.3,0.0008004]
[1768823944960,1.41567164,3223.6,3223.3,0.0008004]
[1768823946879,4.51782218,3223.6,3223.3,0.0008004]
[1768823947380,0.90467164,3223.5,3223.3,0.0008004]
[1768823948556,0.511,3223.6,3223.3,0.0008004]
[1768823948751,3.61312906,3223.6,3223.3,0.0008004]
[1768823948956,0.511,3223.6,3223.3,0.0008004]
[1768823949158,3.10197578,3223.8,3223.3,0.96409047]
[1768823949357,0.511,3223.7,3223.3,0.96409047]
[1768823951077,3.61304474,3223.7,3223.3,0.96409047]
[1768823951378,3.10197744,3223.8,3223.3,0.96409047]
[1768823952364,6.20395891,3223.8,3223.3,0.96409047]
[1768823952659,6.96600199,3223.8,3223.3,0.96409047]
[1768823952846,7.87067363,3223.8,3223.3,0.96409047]
[1768823953252,0.90467164,3223.7,3223.3,0.96409047]
[1768823955761,3.10212185,3223.6,3223.3,0.0008004]
[1768823957184,4.00674545,3223.7,3223.3,0.0008004]
[1768823957580,4.00674545,3223.7,3223.3,0.96409047]
[1768823957779,4.5347243,3223.7,3223.3,0.96409047]
[1768823959093,3.63005266,3223.7,3223.3,0.96409047]
[1768823963206,7.68333348,3223.7,3223.3,0.0008004]
[1768823963778,4.58125967,3223.7,3223.3,0.0008004]
[1768823966603,3.63005266,3223.7,3223.3,0.93934001]
[1768823966813,3.10207381,3223.7,3223.3,0.93934001]
[1768823969266,3.10202562,3223.7,3223.3,0.93934001]
[1768823972191,3.61296759,3223.8,3223.3,0.93934001]
[1768823974773,0.511,3223.8,3223.3,0.93934001]
[1768823975167,3.61295884,3223.8,3223.3,0.93934001]
[1768823976396,5.33084323,3223.8,3223.3,0.93934001]
[1768823978195,4.37963622,3223.8,3223.3,0.93934001]
[1768823978401,0.511,3223.8,3223.3,0.93934001]
[1768823978992,4.05379284,3224.0,3223.3,0.93934001]
[1768823979186,0.511,3223.9,3223.3,0.93934001]
[1768823980009,3.61285655,3223.9,3223.3,0.93934001]
[1768823980304,0.511,3223.9,3223.3,0.93934001]
[1768823980901,3.61285301,3223.9,3223.3,0.93934001]
[1768823983206,0.511,3223.9,3223.3,0.93934001]
[1768823984008,0.002,3223.6,3223.3,0.93934001]
[1768823984599,0.002,3223.9,3223.4,0.97482979]
[1768823985809,0.9835268,3224.1,3223.7,0.97482979]
[1768823986305,4.08518451,3224.1,3223.7,0.97482979]
[1768823987314,7.18684222,3224.1,3223.7,0.97482979]
[1768823987521,4.08518451,3224.1,3223.6,0.97563011]
[1768823988517,0.9835268,3224.1,3223.6,0.97563011]
[1768823988809,4.08516974,3224.1,3223.6,0.97563011]
[1768823995059,0.9835268,3224.1,3223.6,0.97563011]
[1768823995430,4.08517296,3224.1,3223.6,0.97563011]
[1768823996624,0.9835268,3224.1,3223.9,0.001]
[1768823996828,1.44333687,3224.1,3223.9,0.001]
[1768823997830,3.10159666,3224.2,3223.9,0.001]
[1768823998726,3.38082719,3224.2,3223.9,0.001]
[1768824000307,6.48242385,3224.2,3223.9,0.001]
[1768824001239,3.38082719,3224.2,3223.9,0.001]
[1768824001441,0.69953036,3224.1,3223.9,0.001]
[1768824002564,3.10173697,3224.0,3223.9,0.001]
[1768824003044,3.80121852,3224.1,3223.9,0.001]
[1768824003644,0.69953036,3224.1,3223.9,0.001]
[1768824003940,3.38079199,3224.2,3223.9,0.001]
[1768824004921,3.38080629,3224.2,3223.9,0.001]
[1768824006853,0.002,3224.3,3223.9,0.92831659]
[1768824007921,0.28123053,3224.3,3223.9,0.92831659]
[1768824008357,0.002,3224.3,3223.9,0.92831659]
[1768824008842,0.28123053,3224.3,3223.9,0.92831659]
[1768824009655,3.10154456,3224.2,3223.9,0.92831659]
[1768824011641,3.10349077,3224.3,3223.9,0.92831659]
[1768824011819,0.70159306,3224.3,3223.9,0.92831659]
[1768824012219,0.98082359,3224.3,3223.9,0.92831659]
[1768824012519,0.70159306,3224.3,3223.9,0.92831659]
[1768824012945,0.002,3224.3,3223.9,0.92831659]
[1768824013247,0.00080032,3224.4,3224.0,0.92731659]
[1768824013455,3.10320969,3224.6,3224.1,0.92731659]
[1768824013744,0.002,3224.6,3224.1,0.92731659]
[1768824016692,0.002,3224.6,3224.2,0.40298497]
[1768824016993,0.002,3224.6,3224.0,0.0008004]
[1768824016994,0.002,3224.6,3224.3,0.92731659]
[1768824028903,0.00280048,3224.7,3224.4,0.96911332]
[1768824029209,0.28683133,3224.5,3224.0,0.0008004]
[1768824029368,0.28603077,3224.2,3223.9,0.001]
[1768824029992,0.28683117,3224.4,3223.9,0.97011332]
[1768824030894,0.0008004,3224.4,3223.9,0.97011332]
[1768824031396,0.39070781,3224.4,3223.9,0.97011332]
[1768824031775,0.67673858,3224.4,3223.9,0.97011332]
[1768824032370,0.67873858,3224.4,3223.9,0.97011332]
[1768824032696,0.0028004,3224.4,3223.9,0.97011332]
[1768824034198,0.00280056,3224.7,3224.0,0.9699138]
[1768824035106,0.00280056,3224.7,3224.1,0.96911332]
[1768824035685,0.29163173,3224.7,3224.1,0.96911332]
[1768824035882,0.29163173,3224.7,3224.0,0.00080048]
[1768824035883,0.28883117,3224.6,3224.0,0.00080048]
[1768824036285,0.89562105,3224.5,3224.0,0.00080048]
[1768824036601,0.28883117,3224.4,3224.0,0.00080048]
[1768824037483,0.89562105,3224.5,3224.0,0.9699138]
[1768824037664,3.99691431,3224.5,3224.0,0.9699138]
[1768824037997,3.70808314,3224.5,3224.0,0.9699138]
[1768824038201,0.42190831,3224.4,3224.0,0.9699138]
[1768824044581,0.42190831,3224.4,3224.3,0.001]
[1768824048176,0.42190831,3224.4,3224.3,0.99172468]
[1768824048491,3.1012077,3224.6,3224.3,0.99172468]
[1768824049074,3.10386422,3224.7,3224.3,0.99172468]
[1768824049711,0.00280056,3224.7,3224.3,0.99172468]
[1768824051071,0.00280056,3224.7,3224.0,0.00080048]
[1768824051072,0.93771174,3224.7,3224.0,0.00080048]
[1768824051272,0.93771174,3224.7,3224.0,0.99152516]
[1768824051477,1.69998366,3224.6,3224.0,0.99152516]
[1768824051914,0.93491118,3224.5,3224.0,0.99152516]
[1768824053311,4.01272209,3224.4,3224.0,0.99152516]
[1768824053618,4.01272209,3224.4,3224.0,0.00080048]
[1768824054705,4.01272209,3224.4,3224.0,0.97749548]
[1768824055816,4.80062735,3224.4,3224.0,0.97749548]
[1768824056316,4.80062735,3224.4,3224.3,0.001]
[1768824057426,7.90197953,3224.4,3224.0,0.89421378]
[1768824057583,7.90278001,3224.4,3223.9,0.977695]
[1768824058516,4.01291447,3224.2,3223.9,0.001]
[1768824060200,4.80321316,3224.2,3223.9,0.001]
[1768824062531,3.10164076,3224.1,3223.9,0.001]
[1768824063735,0.91136991,3224.0,3223.6,0.00080032]
[1768824064924,4.01318487,3224.0,3223.6,0.00080032]
[1768824065131,4.01318487,3224.0,3223.6,0.97749532]
[1768824068623,4.01318487,3224.0,3223.9,0.001]